bitfinex-derivatives/quotes_SOLF0:USTF0_20250227
["timestamp","ask_amount","ask_price","bid_price","bid_amount"]
[1740665884534,7.1959,139.08,139.01,7.1992]
[1740665884733,7.1959,139.08,139.06,0.04898993]
[1740665885038,0.0520352,139.08,139.06,0.04566141]
[1740665885848,0.0520352,139.08,138.98,12.54]
[1740665886347,233.2903,139.13,138.98,19.7407]
[1740665886536,233.2903,139.13,138.95,4.0396]
[1740665886738,233.2903,139.13,138.95,16.5396]
[1740665887145,0.04837556,139.05,138.95,4.0396]
[1740665887349,0.04837556,139.05,138.95,11.2419]
[1740665887542,21.51,139.11,138.95,11.2419]
[1740665887743,0.0524918,139.01,138.95,4.0396]
[1740665887945,21.51,139.11,138.95,4.0396]
[1740665888449,0.0481655,139.04,138.95,11.2419]
[1740665888652,0.0481655,139.04,138.91,195.0]
[1740665888849,14.3897,139.1,138.92,1.9179]
[1740665889050,7.2009,138.98,138.94,7.2028]
[1740665889248,192.0,139.09,138.92,1.9179]
[1740665889447,0.05452808,138.97,138.92,1.9179]
[1740665889648,7.2007,138.99,138.94,7.2025]
[1740665889847,0.04902799,138.96,138.92,1.9179]
[1740665890048,14.3897,139.1,138.92,1.9179]
[1740665890251,0.04988814,138.96,138.92,1.9179]
[1740665890457,14.3897,139.1,138.92,1.9179]
[1740665890749,0.04621069,138.96,138.92,1.9179]
[1740665891050,14.3897,139.1,138.95,7.2024]
[1740665891245,1.9271,139.09,138.92,1.9179]
[1740665891445,1.9271,139.09,138.87,195.0]
[1740665891446,14.3914,139.08,138.87,195.0]
[1740665891646,7.2012,138.98,138.92,7.2036]
[1740665891852,12.88968787,138.98,138.92,7.2036]
[1740665892046,0.04886552,138.96,138.88,5.8446]
[1740665892347,0.04886552,138.96,138.91,7.2041]
[1740665892743,0.04886552,138.96,138.88,7.28469216]
[1740665892944,0.04886552,138.96,138.89,1.32354173]
[1740665894144,0.04886552,138.96,138.82,3.8725]
[1740665894347,0.04886552,138.96,138.83,1.32422611]
[1740665894554,12.5,138.98,138.83,1.32422611]
[1740665894753,0.05431228,138.91,138.82,3.8725]
[1740665895055,1.942,138.97,138.82,3.8725]
[1740665895252,0.05248445,138.88,138.8,0.26708]
[1740665895556,7.2097,138.81,138.69,304.64587177]
[1740665895745,7.2097,138.81,138.75,1.8688]
[1740665895949,0.04913074,138.85,138.76,1.32492135]
[1740665896147,3.9194,138.89,138.72,3.9049]
[1740665896352,0.05485805,138.82,138.72,3.9049]
[1740665896746,3.9194,138.89,138.72,3.9049]
[1740665896951,0.05409775,138.78,138.73,1.32526156]
[1740665897153,3.9194,138.89,138.73,1.32526156]
[1740665897351,0.05420604,138.77,138.67,3.34916156]
[1740665897552,7.2118,138.77,138.68,1.32572622]
[1740665897850,0.05113832,138.73,138.68,1.32572622]
[1740665898053,3.9194,138.89,138.68,1.32572622]
[1740665898458,0.05053048,138.72,138.68,1.32572622]
[1740665898657,12.76,138.84,138.67,14.7839]
[1740665898854,0.04701328,138.71,138.68,1.32571274]
[1740665899054,12.76,138.84,138.68,1.32571274]
[1740665899256,7.2091,138.83,138.68,22.96571274]
[1740665899553,3.9194,138.89,138.75,0.04561405]
[1740665899759,3.9194,138.89,138.73,12.76]
[1740665900059,3.9194,138.89,138.74,7.14690555]
[1740665900259,11.125,138.89,138.78,7.2111]
[1740665900455,0.05432082,138.83,138.8,0.05296926]
[1740665900657,2.0318,138.93,138.81,12.76]
[1740665900861,2.0318,138.93,138.82,3.9151]
[1740665901860,0.05516117,138.89,138.86,0.0520246]
[1740665905067,0.05516117,138.89,138.74,12.76]
[1740665905363,1.9201,138.94,138.75,1.32472888]
[1740665905559,1.9201,138.94,138.79,7.2102]
[1740665905860,1.9201,138.94,138.71,12.76]
[1740665906061,1.9201,138.94,138.78,7.2112]
[1740665906258,0.04756953,138.84,138.81,0.05325453]
[1740665906458,1.9201,138.94,138.79,14.6915]
[1740665906659,0.04561754,138.84,138.81,0.05272664]
[1740665906858,0.04561754,138.84,138.79,21.9021]
[1740665906859,7.2064,138.88,138.79,21.9021]
[1740665907160,0.04556864,138.84,138.81,0.05321439]
[1740665907368,1.9201,138.94,138.8,3.24541126]
[1740665907563,0.05122115,138.84,138.81,1.37211282]
[1740665907764,7.2054,138.9,138.81,8.53391126]
[1740665908059,0.04745481,138.84,138.81,7.25776911]
[1740665908267,7.2059,138.89,138.84,0.05117534]
[1740665908458,0.05378219,138.88,138.8,1.9207]
[1740665908654,0.05378219,138.88,138.85,0.05143864]
[1740665909464,7.26018219,138.88,138.85,0.05143864]
[1740665910166,0.05378219,138.88,138.85,0.05143864]
[1740665911568,7.2065,138.87,138.85,0.05143864]
[1740665911768,0.05378219,138.88,138.85,0.05143864]
[1740665912666,7.2065,138.87,138.85,0.05143864]
[1740665913765,0.05378219,138.88,138.85,0.05143864]
[1740665914365,7.2071,138.86,138.85,0.05143864]
[1740665915567,7.2066,138.87,138.85,0.05143864]
[1740665915767,0.05378219,138.88,138.85,0.05143864]
[1740665916766,7.26028219,138.88,138.85,0.05143864]
[1740665916965,0.05378219,138.88,138.85,0.05143864]
[1740665917370,7.2068,138.87,138.85,0.05143864]
[1740665917770,0.05378219,138.88,138.85,0.05143864]
[1740665918361,7.26018219,138.88,138.85,0.05143864]
[1740665919069,7.26008219,138.88,138.85,0.05143864]
[1740665919464,0.05378219,138.88,138.85,0.05143864]
[1740665919769,2.0326,138.96,138.85,21.65143864]
[1740665919970,2.0326,138.96,138.86,1.914]
[1740665920169,2.0326,138.96,138.87,21.7582]
[1740665920371,2.0326,138.96,138.87,14.5518]
[1740665920671,7.202,138.96,138.9,7.2046]
[1740665920865,0.04607484,138.93,138.9,0.05426005]
[1740665921764,78.00523908,139.0,138.9,0.05426005]
[1740665921966,78.00523908,139.0,138.88,1.32382364]
[1740665922470,7.2006,138.99,138.94,7.2026]
[1740665922966,0.05126584,138.98,138.96,7.2017]
[1740665923161,0.05126584,138.98,138.95,0.05046659]
[1740665923361,78.00523908,139.0,138.97,7.2009]
[1740665923566,0.05041742,138.98,138.95,0.04646619]
[1740665923970,7.1995,139.01,138.95,7.2021]
[1740665924171,0.05192016,138.98,138.95,12.65309143]
[1740665925068,126.70207098,139.04,138.95,12.65309143]
[1740665925273,126.70207098,139.04,138.96,3.9898]
[1740665925666,7.1986,139.03,138.97,7.2012]
[1740665926061,126.70207098,139.04,138.96,3.9898]
[1740665926275,0.05084701,139.01,138.99,0.04811449]
[1740665927162,0.05084701,139.01,138.99,7.24811449]
[1740665927563,0.05084701,139.01,138.99,0.04811449]
[1740665927872,7.1967,139.06,139.0,7.1994]
[1740665928672,81.92393908,139.07,138.96,3.9898]
[1740665928970,0.04843822,139.04,139.02,0.05424734]
[1740665929274,7.1983,139.03,139.02,0.05424734]
[1740665930569,0.04843822,139.04,138.94,12.6]
[1740665930873,3.9187,139.07,138.91,1.94]
[1740665931077,7.2032,138.94,138.91,1.94]
[1740665931874,0.0465109,138.94,138.91,1.98830153]
[1740665932168,0.0465109,138.94,138.91,0.04830153]
[1740665932768,0.0465109,138.94,138.92,7.2036]
[1740665932977,0.0465109,138.94,138.91,0.04830153]
[1740665935675,2.0174,139.04,138.91,21.64830153]
[1740665935872,7.1988,139.02,138.89,1.9366]
[1740665936174,78.00523908,139.08,138.9,1.32338562]
[1740665936572,78.00523908,139.08,139.0,7.1998]
[1740665937072,0.04919506,139.05,138.98,12.56]
[1740665937267,0.04919506,139.05,139.02,0.04646809]
[1740665937976,0.04919506,139.05,139.02,7.24516809]
[1740665939083,0.04919506,139.05,139.02,0.04646809]
[1740665939374,0.04919506,139.05,139.03,7.1982]
[1740665939971,78.00523908,139.16,139.02,0.04646809]
[1740665940275,78.00523908,139.16,138.99,1.9891]
[1740665940477,78.00523908,139.16,139.09,7.195]
[1740665940670,12.54,139.15,138.91,203.65178115]
[1740665940871,1.12455286,139.14,138.92,1.32243758]
[1740665941076,13.74455286,139.14,138.92,5.20643758]
[1740665941379,0.0526841,139.04,139.02,0.05466327]
[1740665941572,185.90201975,139.16,139.01,12.62]
[1740665941774,0.04760982,139.04,139.02,0.04685838]
[1740665941974,78.00523908,139.16,139.01,34.2]
[1740665942279,78.00523908,139.13,139.02,4.0141]
[1740665942479,78.00523908,139.13,139.01,12.62]
[1740665943077,0.04728999,139.08,139.06,0.04887905]
[1740665943378,7.1971,139.06,139.01,12.62]
[1740665943572,78.00523908,139.13,139.01,12.62]
[1740665943979,34.13,139.12,138.94,16.6341]
[1740665944493,7.1983,139.03,139.02,3.549e-05]
[1740665944879,25.5733,139.03,138.91,1.43978115]
[1740665945068,3.9933,139.03,138.91,1.43978115]
[1740665945478,7.1993,139.01,138.93,7.2033]
[1740665945678,0.04794851,138.98,138.96,0.05142976]
[1740665947681,7.24914851,138.98,138.96,0.05142976]
[1740665948278,7.2014,138.97,138.96,0.05142976]
[1740665948677,0.04794851,138.98,138.96,0.05142976]
[1740665950077,7.2014,138.97,138.96,0.05142976]
[1740665951585,7.2014,138.97,138.91,1.43978115]
[1740665951784,7.202,138.96,138.91,1.43978115]
[1740665952087,1.9524,139.02,138.91,1.43978115]
[1740665952778,0.04598026,138.98,138.95,0.0457138]
[1740665953980,0.04598026,138.98,138.95,7.2476138]
[1740665954486,7.198,139.04,138.95,0.0457138]
[1740665954687,21.3447931,139.06,138.96,1.977]
[1740665954887,7.1974,139.05,138.96,1.977]
[1740665955083,21.3447931,139.06,138.96,1.977]
[1740665955484,28.5417931,139.06,138.96,1.977]
[1740665955681,0.04717569,139.02,139.0,0.05126016]
[1740665957488,7.1993,139.01,139.0,0.05126016]
[1740665957788,21.62717569,139.02,138.91,1.43978115]
[1740665958086,2.0124,139.0,138.91,1.43978115]
[1740665958689,7.2008,138.99,138.92,7.2038]
[1740665958888,0.05145184,138.97,138.94,0.0519364]
[1740665959089,2.0124,139.0,138.88,7.206]
[1740665959281,2.0124,139.0,138.86,1.9515]
[1740665959687,2.0124,139.0,138.86,14.5115]
[1740665960294,2.0124,139.0,138.85,1.9461]
[1740665960295,0.0532639,138.94,138.92,0.04794862]
[1740665960485,194.0124,139.0,138.85,1.9461]
[1740665960682,0.04567036,138.94,138.85,1.9461]
[1740665960884,2.0124,139.0,138.85,1.9461]
[1740665961185,7.2035,138.93,138.88,7.2059]
[1740665961395,197.8324,139.0,138.85,1.9461]
[1740665961698,197.8324,139.0,138.91,0.04854436]
[1740665961699,7.204,138.92,138.91,0.04854436]
[1740665961900,197.8324,139.0,138.84,14.4764]
[1740665962091,2.0368,138.93,138.84,14.4764]
[1740665962288,7.2067,138.87,138.84,1.9164]
[1740665962492,2.0368,138.93,138.82,19.769]
[1740665962697,2.0368,138.93,138.82,12.56]
[1740665963088,0.04624693,138.89,138.86,0.0435753]
[1740665963290,7.2065,138.88,138.86,0.0435753]
[1740665963493,0.04624693,138.89,138.86,0.0435753]
[1740665965598,0.04624693,138.89,138.88,7.206]
[1740665965992,0.04624693,138.89,138.86,0.0435753]
[1740665966193,0.04624693,138.89,138.87,7.2061]
[1740665966488,0.04624693,138.89,138.86,0.0435753]
[1740665966688,7.2025,138.95,138.89,7.2051]
[1740665966894,7.2025,138.95,138.87,1.9594]
[1740665967086,2.0457,138.98,138.87,1.9594]
[1740665967288,7.2022,138.96,138.9,7.2049]
[1740665967688,2.0457,138.98,138.87,1.9594]
[1740665967887,0.04562864,138.94,138.92,0.05434127]
[1740665970097,0.04562864,138.94,138.93,7.2034]
[1740665970592,0.04562864,138.94,138.92,7.25794127]
[1740665970795,0.04562864,138.94,138.92,0.05434127]
[1740665971190,0.04562864,138.94,138.93,7.2034]
[1740665972791,3.8774,139.04,138.92,0.05434127]
[1740665972792,3.8774,139.04,138.96,7.2016]
[1740665972999,2.0349,139.03,138.9,2.0052]
[1740665973501,7.2011,138.98,138.9,2.0052]
[1740665973700,192.0,139.02,138.85,21.53]
[1740665973999,0.04657462,138.95,138.83,12.48]
[1740665974295,2.0349,138.96,138.84,7.2078]
[1740665974498,7.2054,138.9,138.84,7.2078]
[1740665974909,2.0349,138.96,138.84,7.2078]
[1740665975201,0.04681324,138.88,138.86,0.04634396]
[1740665975398,2.0349,138.96,138.86,0.04634396]
[1740665975600,0.04693718,138.88,138.86,0.0457607]
[1740665975800,2.0349,138.96,138.86,0.0457607]
[1740665975997,0.04923944,138.88,138.86,0.04630596]
[1740665976194,7.2064,138.88,138.8,12.48]
[1740665976397,0.0547758,138.88,138.86,0.04717902]
[1740665976592,0.0547758,138.88,138.8,12.48]
[1740665976903,0.0547758,138.88,138.83,0.04653864]
[1740665978304,7.2069,138.87,138.83,0.04653864]
[1740665978505,0.0547758,138.88,138.83,0.04653864]
[1740665979000,7.2608758,138.88,138.83,7.25483864]
[1740665979607,0.0547758,138.88,138.84,7.2081]
[1740665979809,0.0547758,138.88,138.83,0.04653864]
[1740665980807,0.0547758,138.88,138.83,7.25483864]
[1740665981310,0.0547758,138.88,138.83,0.04653864]
[1740665981509,0.0547758,138.88,138.83,12.48653864]
[1740665982106,0.0547758,138.88,138.83,19.69483864]
[1740665982509,0.0547758,138.88,138.83,12.48653864]
[1740665982812,0.0547758,138.88,138.85,7.2073]
[1740665983909,0.0547758,138.88,138.84,1.8594]
[1740665983910,7.2031,138.94,138.84,1.8594]
[1740665984114,7.2031,138.94,138.84,5.7538]
[1740665984308,2.0349,138.96,138.84,5.7538]
[1740665984507,7.2034,138.93,138.86,7.207]
[1740665984711,2.0349,138.96,138.86,7.207]
[1740665985010,7.2043,138.92,138.86,7.207]
[1740665985214,7.25191877,138.92,138.9,0.04652013]
[1740665985608,0.04761877,138.92,138.9,0.04652013]
[1740665986212,7.25201877,138.92,138.9,0.04652013]
[1740665986411,0.04761877,138.92,138.9,0.04652013]
[1740665987317,0.04761877,138.92,138.9,12.46652013]
[1740665987718,2.031,139.0,138.9,12.46652013]
[1740665987929,2.031,139.0,138.9,12.42]
[1740665989017,0.05104597,138.96,138.94,0.0511923]
[1740665990621,0.05104597,138.96,138.84,3.8944]
[1740665990923,2.031,139.0,138.85,12.44]
[1740665991121,2.031,139.0,138.84,3.8944]
[1740665991326,14.4007,138.99,138.85,12.44]
[1740665991519,2.031,139.0,138.85,12.44]
[1740665991919,0.04940558,138.94,138.91,0.04556419]
[1740665992120,2.031,139.0,138.85,12.44]
[1740665992322,7.2049,138.91,138.85,12.44]
[1740665992522,0.04642064,138.94,138.91,0.04898982]
[1740665992725,7.206,138.88,138.84,3.8944]
[1740665993321,7.2068,138.87,138.84,3.8944]
[1740665993524,21.51,138.98,138.84,3.8944]
[1740665993724,35.9098,139.0,138.84,3.8944]
[1740665993925,7.2045,138.91,138.9,0.0536724]
[1740665994115,35.9098,139.0,138.85,7.2076]
[1740665994321,7.2053,138.9,138.89,0.05404084]
[1740665994614,7.2053,138.9,138.85,7.2076]
[1740665994818,7.2053,138.9,138.88,0.05521963]
[1740665995921,0.04829722,138.91,138.88,0.05521963]
[1740665996918,7.2053,138.9,138.88,0.05521963]
[1740665997221,0.04829722,138.91,138.88,0.05521963]
[1740665997518,7.25309722,138.91,138.88,0.05521963]
[1740665997718,0.04829722,138.91,138.88,0.05521963]
[1740665999022,0.04829722,138.91,138.88,12.45521963]
[1740666000032,7.25319722,138.91,138.88,12.45521963]
[1740666000330,0.04829722,138.91,138.88,19.66081963]
[1740666000829,0.04829722,138.91,138.9,7.205]
[1740666001027,0.04829722,138.91,138.88,12.45521963]
[1740666001423,0.04829722,138.91,138.88,0.05521963]
[1740666002028,0.04829722,138.91,138.9,7.205]
[1740666002229,0.04829722,138.91,138.88,0.05521963]
[1740666002928,0.04829722,138.91,138.89,7.2051]
[1740666003925,0.04829722,138.91,138.88,0.05521963]
[1740666004825,0.04829722,138.91,138.82,14.407]
[1740666005029,2.0254,138.95,138.82,14.407]
[1740666006027,0.04560739,138.9,138.87,0.03485508]
[1740666006228,9.0617,138.96,138.91,7.2044]
[1740666006429,1.8596,138.96,138.89,12.4]
[1740666006630,0.04873176,138.95,138.89,12.4]
[1740666006830,0.04873176,138.95,138.93,7.2033]
[1740666007132,0.04873176,138.95,138.91,0.03485508]
[1740666007333,0.04873176,138.95,138.94,7.2029]
[1740666007633,0.04873176,138.95,138.91,0.03485508]
[1740666008033,126.89486716,139.0,138.91,0.03485508]
[1740666008227,126.89486716,139.0,138.9,5.9513]
[1740666008426,126.89486716,139.0,138.93,7.2034]
[1740666008626,126.89486716,139.0,138.9,5.9513]
[1740666009131,126.89486716,139.0,138.94,0.05541997]
[1740666009132,0.05040401,138.96,138.94,0.05541997]
[1740666009532,0.05040401,138.96,138.89,12.4]
[1740666010733,0.05040401,138.96,138.91,0.02816688]
[1740666011227,7.2037,138.93,138.91,0.02816688]
[1740666011824,7.2025,138.95,138.91,0.02816688]
[1740666012032,0.05040401,138.96,138.91,0.02816688]
[1740666013128,7.2027,138.95,138.91,0.02816688]
[1740666013331,0.05040401,138.96,138.91,0.02816688]
[1740666014134,7.204,138.92,138.91,0.02816688]
[1740666014337,3.9595,138.95,138.91,0.02816688]
[1740666014527,0.05239954,138.93,138.85,14.3571]
[1740666014731,0.05239954,138.93,138.83,1.44061081]
[1740666014931,1.872,138.94,138.83,1.44061081]
[1740666015128,7.2066,138.87,138.83,1.44061081]
[1740666015333,1.872,138.94,138.83,1.44061081]
[1740666015740,1.872,138.94,138.78,128.99628527]
[1740666015934,0.04768812,138.9,138.78,107.46628527]
[1740666016134,1.872,138.94,138.78,119.88628527]
[1740666016437,0.05063844,138.85,138.78,107.46628527]
[1740666017933,7.2107,138.79,138.78,107.46628527]
[1740666018138,5.8386,138.84,138.69,29.54078848]
[1740666018339,0.04780529,138.8,138.69,41.96078848]
[1740666018540,192.0,138.83,138.69,29.54078848]
[1740666018728,0.0478623,138.76,138.69,29.54078848]
[1740666019133,7.2133,138.75,138.69,29.54078848]
[1740666019334,5.8386,138.75,138.69,29.54078848]
[1740666019638,13.0518,138.75,138.69,29.54078848]
[1740666019838,5.8386,138.75,138.69,29.54078848]
[1740666020436,13.0515,138.75,138.69,29.54078848]
[1740666020638,3.8476,138.75,138.69,29.54078848]
[1740666021035,7.2601623,138.76,138.7,7.2149]
[1740666021338,0.0478623,138.76,138.65,33.97]
[1740666021539,11.1378,138.8,138.66,1.44237703]
[1740666021733,78.00523908,138.84,138.67,22.85567532]
[1740666021936,78.00523908,138.84,138.69,21.53]
[1740666022134,78.00523908,138.84,138.71,21.53]
[1740666022341,78.00523908,138.84,138.73,21.53]
[1740666022538,78.00523908,138.84,138.74,1.44154533]
[1740666022836,78.00523908,138.84,138.77,7.2117]
[1740666023143,0.05155609,138.8,138.78,1.96495183]
[1740666023543,7.2071,138.86,138.79,19.6307]
[1740666024037,2.0476,138.92,138.79,12.42]
[1740666024343,3.9823,138.92,138.79,12.42]
[1740666024542,7.2068,138.87,138.8,7.2102]
[1740666024739,7.25246984,138.87,138.84,0.04859952]
[1740666025243,0.04566984,138.87,138.84,7.25649952]
[1740666025838,0.04566984,138.87,138.84,0.04859952]
[1740666027846,1.968,138.95,138.84,0.04859952]
[1740666028038,1.968,138.95,138.8,25.4288]
[1740666028240,1.968,138.95,138.81,1.44081838]
[1740666029143,0.04648727,138.89,138.87,0.0537616]
[1740666029347,7.2029,138.94,138.87,0.0537616]
[1740666029854,0.04833328,138.92,138.87,0.0537616]
[1740666031554,7.2053,138.9,138.87,0.0537616]
[1740666031752,0.04833328,138.92,138.87,0.0537616]
[1740666032955,7.2052,138.9,138.87,0.0537616]
[1740666033455,0.04833328,138.92,138.87,7.2599616]
[1740666033852,0.04833328,138.92,138.87,0.0537616]
[1740666034653,7.2058,138.89,138.87,0.0537616]
[1740666035651,0.04833328,138.92,138.87,0.0537616]
[1740666035849,7.206,138.88,138.87,0.0537616]
[1740666037051,7.2079,138.85,138.81,13.84081838]
[1740666037356,21.65,138.93,138.81,13.84081838]
[1740666037859,213.65,138.94,138.81,13.84081838]
[1740666038061,307.85316272,139.0,138.81,35.37081838]
[1740666038361,0.05088306,138.91,138.86,0.05402918]
[1740666038558,80.39488724,138.99,138.81,42.58281838]
[1740666038761,0.05408449,138.9,138.87,0.04861765]
[1740666038962,80.39488724,138.99,138.88,12.42]
[1740666039161,0.04565943,138.9,138.88,12.42]
[1740666039353,102.04488724,138.99,138.81,1.44081838]
[1740666039558,0.05473367,138.9,138.74,12.46]
[1740666039864,7.2057,138.89,138.79,1.935]
[1740666040064,192.0,138.96,138.79,1.935]
[1740666040863,0.04818885,138.89,138.86,0.04760194]
[1740666041065,1.9359,138.99,138.86,12.44]
[1740666041264,0.04945805,138.89,138.86,12.4879144]
[1740666041566,0.04965783,138.89,138.76,25.5546]
[1740666041859,37.9359,138.99,138.77,1.44123369]
[1740666041860,192.0,138.96,138.77,1.44123369]
[1740666042065,37.9359,138.99,138.83,7.2083]
[1740666042066,1.9359,138.99,138.83,7.2083]
[1740666042258,3.10626243,138.98,138.83,12.46]
[1740666042455,1.9812,138.98,138.83,12.46]
[1740666043068,21.65,138.94,138.71,66.1735869]
[1740666043369,21.65,138.92,138.73,4.0287]
[1740666043667,1.8595,138.91,138.74,2.76637688]
[1740666043867,1.8595,138.91,138.75,2.76627299]
[1740666044060,1.8595,138.91,138.76,22.85483155]
[1740666044256,1.8595,138.91,138.76,21.53]
[1740666044461,0.04953234,138.85,138.82,0.04886889]
[1740666044668,193.9094,138.9,138.75,1.44144144]
[1740666045060,0.05171089,138.85,138.82,0.04886889]
[1740666046363,7.2086,138.84,138.82,0.04886889]
[1740666046562,0.05171089,138.85,138.82,0.04886889]
[1740666047466,0.05171089,138.85,138.75,1.44144144]
[1740666047666,215.5594,138.9,138.75,1.44144144]
[1740666047962,192.0,138.89,138.75,1.44144144]
[1740666048167,7.2087,138.83,138.76,7.2121]
[1740666048372,192.0,138.89,138.75,1.44144144]
[1740666048565,192.0,138.88,138.75,13.94144144]
[1740666048871,0.05534618,138.83,138.75,1.44144144]
[1740666049962,0.05534618,138.83,138.76,3.9295]
[1740666050162,0.05534618,138.83,138.82,7.2091]
[1740666050367,0.05534618,138.83,138.82,19.6891]
[1740666053064,1.9094,138.9,138.86,7.2066]
[1740666053470,193.9605,138.93,138.82,12.48]
[1740666053670,201.1643,138.93,138.83,2.0377]
[1740666053869,193.9605,138.93,138.83,2.0377]
[1740666054263,0.04796256,138.89,138.87,0.05329991]
[1740666055367,0.04796256,138.89,138.88,7.206]
[1740666055567,0.04796256,138.89,138.87,0.05329991]
[1740666058065,7.2026,138.95,138.87,0.05329991]
[1740666058274,3.8546,138.96,138.84,28.742]
[1740666058467,7.2014,138.97,138.92,7.2039]
[1740666058673,7.2014,138.97,138.92,19.6039]
[1740666058863,78.45898724,138.98,138.92,12.4]
[1740666059065,78.45898724,138.98,138.95,7.2023]
[1740666059268,0.05246959,138.96,138.95,7.2023]
[1740666059461,78.45898724,138.98,138.95,7.2023]
[1740666059666,85.65848724,139.01,138.95,7.2023]
[1740666060065,7.1998,139.0,138.95,7.2023]
[1740666060267,7.1998,139.0,138.94,0.05339164]
[1740666060667,0.0512379,138.98,138.94,0.05339164]
[1740666061871,0.0512379,138.98,138.95,7.202]
[1740666062071,0.0512379,138.98,138.94,0.05339164]
[1740666062466,26.78952793,139.05,138.94,0.05339164]
[1740666062667,19.59222793,139.05,138.94,0.05339164]
[1740666062872,19.59222793,139.05,138.95,1.43936667]
[1740666063170,19.59222793,139.05,139.0,7.1995]
[1740666063367,19.59222793,139.05,139.01,12.36]
[1740666063769,0.05263193,139.04,139.01,12.41116231]
[1740666063973,0.05263193,139.04,139.01,19.61036231]
[1740666065773,0.05263193,139.04,139.02,7.1988]
[1740666066173,0.05263193,139.04,139.01,12.41116231]
[1740666066575,0.05263193,139.04,139.01,0.05116231]
[1740666068178,7.25063193,139.04,139.01,0.05116231]
[1740666068375,0.05263193,139.04,139.01,0.05116231]
[1740666069080,0.05263193,139.04,138.95,1.43936667]
[1740666069281,1.12484508,139.09,138.95,1.43936667]
[1740666069674,14.3916,139.08,138.95,1.43936667]
[1740666070170,25.5155,139.1,138.95,1.43936667]
[1740666070475,0.05251849,139.03,139.0,8.099e-05]
[1740666070675,7.2019,138.96,138.95,1.43936667]
[1740666071077,2.0265,139.05,138.9,12.36]
[1740666071278,7.2033,138.94,138.9,19.5645]
[1740666071778,2.0265,139.05,138.91,0.04842857]
[1740666071975,7.204,138.92,138.91,0.04842857]
[1740666072278,2.0029,138.98,138.83,5.816]
[1740666072279,192.0,138.97,138.83,5.816]
[1740666072575,7.2064,138.88,138.83,19.5685]
[1740666072781,2.0419,138.92,138.83,12.36]
[1740666072973,7.2562134,138.87,138.84,0.05199907]
[1740666073380,0.0492134,138.87,138.84,0.05199907]
[1740666075279,7.2076,138.85,138.84,0.05199907]
[1740666075682,0.0492134,138.87,138.77,12.34]
[1740666075872,2.0029,138.9,138.77,12.34]
[1740666076273,7.2078,138.85,138.8,7.2098]
[1740666076581,7.2078,138.85,138.77,12.34]
[1740666076783,0.0488668,138.84,138.81,0.04855485]
[1740666077181,2.0029,138.9,138.77,12.34]
[1740666077387,0.04728531,138.84,138.81,0.04855485]
[1740666077680,7.2074,138.86,138.78,7.2107]
[1740666077881,0.04539957,138.84,138.81,0.04855485]
[1740666078084,2.0029,138.9,138.77,12.34]
[1740666078282,0.04589825,138.84,138.81,0.04855485]
[1740666078582,7.2081,138.85,138.77,12.34]
[1740666078779,0.04809367,138.84,138.81,0.04855485]
[1740666078980,2.0029,138.9,138.77,12.34]
[1740666079284,0.04618884,138.84,138.81,0.04855485]
[1740666079491,2.0029,138.9,138.77,12.34]
[1740666079788,0.05147692,138.84,138.81,0.04658887]
[1740666080079,2.0029,138.9,138.76,7.52093652]
[1740666080384,0.04616556,138.84,138.81,5.485e-05]
[1740666080584,2.0029,138.9,138.74,18.1699]
[1740666081085,1.12302557,138.89,138.74,5.8299]
[1740666081285,2.0029,138.9,138.74,5.8299]
[1740666081482,0.04984784,138.83,138.74,5.8299]
[1740666081683,1.12355183,138.89,138.75,7.2127]
[1740666081984,1.12355183,138.89,138.74,5.8299]
[1740666082185,0.04554618,138.83,138.74,5.8299]
[1740666082383,2.0029,138.9,138.74,5.8299]
[1740666082583,0.05049679,138.8,138.75,7.52147836]
[1740666082780,0.05151979,138.79,138.75,7.52147836]
[1740666083179,7.2065,138.88,138.75,7.52147836]
[1740666083385,7.2065,138.88,138.75,8.9629198]
[1740666083885,7.2065,138.88,138.81,7.2093]
[1740666084187,0.05074894,138.86,138.83,0.05157464]
[1740666084386,0.05074894,138.86,138.84,7.2081]
[1740666084584,0.05074894,138.86,138.83,0.05157464]
[1740666085884,0.05074894,138.86,138.84,7.2077]
[1740666086084,0.05074894,138.86,138.83,0.05157464]